fUSD/lending_fUSD_20241202
["ID","MTS","AMOUNT","RATE_DAILY","PERIOD"]
[343969768,1733162749573,3118.38,0.00025,120]
[343969769,1733162749778,7728.41,0.00025,120]
[343969770,1733162751633,500.0,0.00025,120]
[343969771,1733162751760,500.0,0.00025,120]
[343969772,1733162751834,500.71,0.00025,120]
[343969773,1733162752468,1163.74,0.00025,120]
[343969774,1733162753773,2638.62,0.00025,120]
[343969775,1733162754887,500.0,0.00025,120]
[343969776,1733162756574,500.0,0.00025,120]
[343969777,1733162757601,1013.69,0.00025,120]
[343969778,1733162758309,500.0,0.00025,120]
[343969779,1733162758382,4452.69,0.00025,120]
[343969780,1733162758468,500.0,0.00025,120]
[343969781,1733162759007,500.0,0.00025,120]
[343969782,1733162759962,3080.87,0.00025,120]
[343969783,1733162760468,1045.17,0.00025,120]
[343969784,1733162761012,2404.42,0.00025,120]
[343969785,1733162761069,5669.5,0.00025,120]
[343969786,1733162761354,19726.09,0.00025,120]
[343969787,1733162761737,4071.98,0.00025,120]
[343969788,1733162761924,6762.76,0.00025,120]
[343969789,1733162762343,4801.65,0.00025,120]
[343969790,1733162763602,500.0,0.00025,120]
[343969791,1733162763924,500.0,0.00025,120]
[343969792,1733162765179,500.0,0.00025,120]
[343969793,1733162765867,19236.29,0.00025,120]
[343969794,1733162767370,500.0,0.00025,120]
[343969795,1733162767944,1243.38,0.00025,120]
[343969796,1733162768028,1440.57,0.00025,120]
[343969797,1733162768659,1306.9,0.00025,120]
[343969798,1733162770525,500.0,0.00025,120]
[343969799,1733162770593,2641.13,0.00025,120]
[343969800,1733162771031,616.08,0.00025,120]
[343969801,1733162771633,13631.24,0.00025,120]
[343969802,1733162771858,33489.46,0.00025,120]
[343969803,1733162772088,692.9,0.00025,120]
[343969804,1733162772319,1066.04,0.00025,120]
[343969805,1733162772501,500.0,0.00025,120]
[343969806,1733162772861,500.0,0.00025,120]
[343969807,1733162774333,907.85,0.00025,120]
[343969808,1733162774533,914.99,0.00025,120]
[343969809,1733162775321,22062.72,0.00025,120]
[343969810,1733162776570,12970.68,0.00025,120]
[343969811,1733162777314,506.86768506,0.00025,120]
[343969812,1733162779235,637.54198275,0.00025,120]
[343969813,1733162779479,747.93,0.00025,120]
[343969814,1733162780435,1477.79,0.00025,120]
[343969815,1733162780501,500.0,0.00025,120]
[343969816,1733162780563,826.36,0.00025,120]
[343969817,1733162781388,500.0,0.00025,120]
[343969818,1733162781681,2686.3,0.00025,120]
[343969819,1733162782550,1318.58,0.00025,120]
[343969820,1733162783760,500.0,0.00025,120]
[343969821,1733162785596,581.16,0.00025,120]
[343969822,1733162786480,500.0,0.00025,120]
[343969823,1733162786537,500.0,0.00025,120]
[343969824,1733162787166,500.0,0.00025,120]
[343969825,1733162787214,14209.26,0.00025,120]
[343969826,1733162787755,562.18,0.00025,120]
[343969827,1733162787866,1589.3,0.00025,120]
[343969828,1733162791738,500.0,0.00025,120]
[343969829,1733162792276,9948.5,0.00025,120]
[343969830,1733162792500,3808.56,0.00025,120]
[343969831,1733162792962,500.0,0.00025,120]
[343969832,1733162793269,500.0,0.00025,120]
[343969833,1733162794484,2770.69,0.00025,120]
[343969834,1733162796137,3171.74,0.00025,120]
[343969835,1733162796784,500.0,0.00025,120]
[343969836,1733162796847,500.0,0.00025,120]
[343969837,1733162796960,964.13,0.00025,120]
[343969838,1733162797380,2107.65,0.00025,120]
[343969839,1733162798798,500.0,0.00025,120]
[343969840,1733162798868,500.0,0.00025,120]
[343969841,1733162798925,500.0,0.00025,120]
[343969842,1733162799229,7561.66,0.00025,120]
[343969843,1733162799627,500.0,0.00025,120]
[343969844,1733162801556,506.95,0.00025,120]
[343969845,1733162801642,8679.93,0.00025,120]
[343969846,1733162801716,500.0,0.00025,120]
[343969847,1733162802505,500.0,0.00025,120]
[343969848,1733162803209,377.78983343,0.00025,120]
[343969849,1733162803486,5056.68,0.00025,120]
[343969850,1733162803742,7723.29,0.00025,120]
[343969851,1733162804476,2566.66,0.00025,120]
[343969852,1733162804586,500.0,0.00025,120]
[343969853,1733162805147,500.0,0.00025,120]
[343969854,1733162805624,9518.43,0.00025,120]
[343969855,1733162806664,500.0,0.00025,120]
[343969856,1733162806726,1312.86,0.00025,120]
[343969857,1733162807688,5803.25,0.00025,120]
[343969858,1733162807824,810.88,0.00025,120]
[343969859,1733162808601,1237.71,0.00025,120]
[343969860,1733162808790,3937.75,0.00025,120]
[343969861,1733162810080,3939.7,0.00025,120]
[343969862,1733162810611,3367.06,0.00025,120]
[343969863,1733162811248,968.07,0.00025,120]
[343969864,1733162812562,1499.91,0.00025,120]
[343969865,1733162812615,500.0,0.00025,120]
[343969866,1733162814278,500.0,0.00025,120]
[343969867,1733162814330,500.0,0.00025,120]
[343969868,1733162815771,1749.4,0.00025,120]
[343969869,1733162817863,4232.33,0.00025,120]
[343969870,1733162818834,500.0,0.00025,120]
[343969871,1733162819346,574.8,0.00025,120]
[343969872,1733162819708,507.15,0.00025,120]
[343969873,1733162819762,1826.72,0.00025,120]
[343969874,1733162820586,1661.57,0.00025,120]
[343969875,1733162821611,505.55050337,0.00025,120]
[343969876,1733162821804,1970.46,0.00025,120]
[343969877,1733162822105,2753.85,0.00025,120]
[343969878,1733162824140,500.0,0.00025,120]
[343969879,1733162824216,4114.3,0.00025,120]
[343969880,1733162824324,500.0,0.00025,120]
[343969881,1733162824385,500.0,0.00025,120]
[343969882,1733162824737,500.0,0.00025,120]
[343969883,1733162825262,500.0,0.00025,120]
[343969884,1733162825309,500.0,0.00025,120]
[343969885,1733162826990,500.0,0.00025,120]
[343969886,1733162827235,512.48692238,0.00025,120]
[343969887,1733162827381,5993.31,0.00025,120]
[343969888,1733162827998,500.0,0.00025,120]
[343969889,1733162828089,500.0,0.00025,120]
[343969890,1733162829787,974.44,0.00025,120]
[343969891,1733162830079,3069.79,0.00025,120]
[343969892,1733162830366,6656.95,0.00025,120]
[343969893,1733162830775,500.0,0.00025,120]
[343969894,1733162831280,2147.87,0.00025,120]
[343969895,1733162832225,1529.77,0.00025,120]
[343969896,1733162832715,500.0,0.00025,120]
[343969904,1733162835240,500.0,0.00025,120]
[343969925,1733162836523,943.09,0.00025,120]
[343970011,1733162838596,690.86,0.00025,120]
[343970018,1733162838730,511.73,0.00025,120]
[343970033,1733162839059,3136.27,0.00025,120]
[343970057,1733162839579,500.0,0.00025,120]
[343970075,1733162839966,500.0,0.00025,120]
[343970086,1733162840243,956.89,0.00025,120]
[343970102,1733162840589,500.0,0.00025,120]
[343970139,1733162841452,1227.43,0.00025,120]
[343970180,1733162842498,704.72,0.00025,120]
[343970187,1733162842630,29830.01,0.00025,120]
[343970270,1733162844543,500.0,0.00025,120]
[343970274,1733162844613,2249.7,0.00025,120]
[343970351,1733162846395,500.0,0.00025,120]
[343970395,1733162847432,500.0,0.00025,120]
[343970409,1733162847779,500.0,0.00025,120]
[343970415,1733162847887,4250.81,0.00025,120]
[343970448,1733162848597,500.0,0.00025,120]
[343970453,1733162848689,500.0,0.00025,120]
[343970468,1733162848986,1350.78,0.00025,120]
[343970498,1733162849620,2098.89,0.00025,120]
[343970541,1733162850694,500.0,0.00025,120]
[343970546,1733162851190,2123.61,0.00025,120]
[343970547,1733162851826,7566.53,0.00025,120]
[343970548,1733162852166,19000.67,0.00025,120]
[343970549,1733162852398,13787.24,0.00025,120]
[343970550,1733162852678,3429.57,0.00025,120]
[343970551,1733162853437,500.0,0.00025,120]
[343970552,1733162853751,1112.57,0.00025,120]
[343970553,1733162854319,500.0,0.00025,120]
[343970554,1733162854714,3684.6,0.00025,120]
[343970555,1733162855053,308.58312923,0.00025,120]
[343970556,1733162858026,1071.44,0.00025,120]
[343970557,1733162858304,713.92,0.00025,120]
[343970558,1733162859141,44202.13,0.00025,120]
[343970559,1733162859915,2135.4,0.00025,120]
[343970560,1733162860494,317.96790399,0.00025,120]
[343970561,1733162862937,395.87945216,0.00025,120]
[343970562,1733162863021,1330.94,0.00025,120]
[343970563,1733162863792,4364.47,0.00025,120]
[343970564,1733162863960,2959.41,0.00025,120]
[343970565,1733162864014,2769.81,0.00025,120]
[343970566,1733162865104,2475.93,0.00025,120]
[343970567,1733162865482,500.0,0.00025,120]
[343970568,1733162866422,2463.64,0.00025,120]
[343970569,1733162868576,500.0,0.00025,120]
[343970570,1733162868668,10361.14,0.00025,120]
[343970571,1733162871874,372.60911308,0.00025,120]
[343970572,1733162872689,11112.66,0.00025,120]
[343970573,1733162874290,500.0,0.00025,120]
[343970574,1733162874408,500.0,0.00025,120]
[343970575,1733162874743,4373.85,0.00025,120]
[343970576,1733162874814,500.0,0.00025,120]
[343970577,1733162875503,677.08,0.00025,120]
[343970578,1733162875721,500.0,0.00025,120]
[343970579,1733162876613,4651.11,0.00025,120]
[343970580,1733162877804,500.0,0.00025,120]
[343970581,1733162881327,835.51,0.00025,120]
[343970582,1733162881452,3147.18,0.00025,120]
[343970583,1733162882766,500.0,0.00025,120]
[343970584,1733162882856,-266.69649637,7.4e-05,2]
[343970585,1733162884189,627.27,0.00025,120]
[343970586,1733162884275,3561.5,0.00025,120]
[343970587,1733162884975,500.0,0.00025,120]
[343970588,1733162885215,1362.23,0.00025,120]
[343970589,1733162885610,2977.69,0.00025,120]
[343970590,1733162885829,500.0,0.00025,120]
[343970591,1733162887328,2848.89,0.00025,120]
[343970592,1733162887384,2541.61,0.00025,120]
[343970593,1733162887953,500.0,0.00025,120]
[343970594,1733162888432,10271.51,0.00025,120]
[343970595,1733162889944,500.0,0.00025,120]
[343970596,1733162890111,7009.88,0.00025,120]
[343970597,1733162890516,8776.57,0.00025,120]
[343970598,1733162893505,500.0,0.00025,120]
[343970599,1733162893570,1521.73,0.00025,120]
[343970600,1733162894313,4919.69,0.00025,120]
[343970601,1733162895240,500.0,0.00025,120]
[343970602,1733162895388,632.35,0.00025,120]
[343970603,1733162895641,662.66,0.00025,120]
[343970604,1733162896064,2858.53,0.00025,120]
[343970605,1733162896135,500.0,0.00025,120]
[343970606,1733162896704,1473.9,0.00025,120]
[343970607,1733162897574,27911.61,0.00025,120]
[343970608,1733162897987,1861.9,0.00025,120]
[343970609,1733162898503,500.0,0.00025,120]
[343970610,1733162900192,500.0,0.00025,120]
[343970611,1733162900414,3295.52,0.00025,120]
[343970612,1733162900479,4157.49,0.00025,120]
[343970613,1733162901449,500.0,0.00025,120]
[343970614,1733162903842,500.0,0.00025,120]
[343970615,1733162903915,27662.71,0.00025,120]
[343970616,1733162903969,1183.92,0.00025,120]
[343970617,1733162904181,190.80781615,0.00025,120]
[343970618,1733162904382,500.0,0.00025,120]
[343970619,1733162905229,500.0,0.00025,120]
[343970620,1733162905525,651.03,0.00025,120]
[343970621,1733162905853,3221.05,0.00025,120]
[343970622,1733162906266,26761.02,0.00025,120]
[343970623,1733162906540,500.0,0.00025,120]
[343970624,1733162906593,843.47,0.00025,120]
[343970625,1733162906967,2559.64,0.00025,120]
[343970626,1733162908087,5200.55,0.00025,120]
[343970627,1733162908611,1717.75,0.00025,120]
[343970628,1733162910178,1591.65,0.00025,120]
[343970629,1733162910231,500.0,0.00025,120]
[343970630,1733162911019,500.0,0.00025,120]
[343970631,1733162911745,945.01,0.00025,120]
[343970632,1733162911930,1924.46,0.00025,120]
[343970633,1733162912122,706.14,0.00025,120]
[343970634,1733162912735,500.0,0.00025,120]
[343970635,1733162914939,969.62,0.00025,120]
[343970636,1733162915016,646.72,0.00025,120]
[343970637,1733162915677,516.68655156,0.00025,120]
[343970638,1733162916364,500.0,0.00025,120]
[343970639,1733162916435,635.04,0.00025,120]
[343970640,1733162916494,37919.19,0.00025,120]
[343970641,1733162917734,6272.45,0.00025,120]
[343970642,1733162917799,711.76,0.00025,120]
[343970643,1733162919463,500.0,0.00025,120]
[343970644,1733162919704,500.0,0.00025,120]
[343970645,1733162919977,2268.35,0.00025,120]
[343970646,1733162921389,1102.86,0.00025,120]
[343970647,1733162922988,841.46,0.00025,120]
[343970648,1733162923626,1223.79,0.00025,120]
[343970649,1733162926476,4975.89,0.00025,120]
[343970650,1733162926578,1108.99,0.00025,120]
[343970651,1733162926823,500.0,0.00025,120]
[343970652,1733162927171,3553.96,0.00025,120]
[343970653,1733162927274,500.0,0.00025,120]
[343970654,1733162928721,1878.12,0.00025,120]
[343970655,1733162928833,3882.43,0.00025,120]
[343970656,1733162928895,505.80662676,0.00025,120]
[343970657,1733162929720,500.0,0.00025,120]
[343970658,1733162932037,-266.69649635,7.55e-05,2]
[343970659,1733162932063,-2500.0,7.6e-05,2]
[343970660,1733162932091,-375.01964761,7.673e-05,2]
[343970661,1733162932116,-365.78586506,7.673e-05,2]
[343970662,1733162932141,-500.0,7.673e-05,2]
[343970663,1733162932166,-150.0,7.698e-05,2]
[343970664,1733162932192,-300.0,7.698e-05,2]
[343970665,1733162932216,-1089.78176655,7.699e-05,2]
[343970666,1733162932243,-171.72568002,7.699e-05,2]
[343970667,1733162932269,-9680.99054441,7.699e-05,2]
[343970668,1733162932338,1144.6,0.00025,120]
[343970669,1733162932720,880.7,0.00025,120]
[343970670,1733162933132,18289.92,0.00025,120]
[343970671,1733162933247,500.0,0.00025,120]
[343970672,1733162933501,891.71,0.00025,120]
[343970673,1733162933841,924.61,0.00025,120]
[343970674,1733162934544,5206.22,0.00025,120]
[343970675,1733162935133,1181.57,0.00025,120]
[343970676,1733162936276,730.32,0.00025,120]
[343970677,1733162939799,1022.12,0.00025,120]
[343970678,1733162940168,1758.9,0.00025,120]
[343970679,1733162941307,5332.94,0.00025,120]
[343970680,1733162941364,500.0,0.00025,120]
[343970681,1733162941746,2466.2,0.00025,120]
[343970682,1733162942112,17550.36,0.00025,120]
[343970683,1733162944048,10230.24798335,0.00025,120]
[343970718,1733163031777,-2500.0,7.6e-05,2]
[343970719,1733163031787,-300.0,7.698e-05,2]
[343970720,1733163031797,-266.69649635,7.698e-05,2]
[343970721,1733163031807,-155.16319557,7.699e-05,2]
[343970722,1733163031852,-9503.0,7.699e-05,2]
[343970723,1733163031864,-279.69657276,7.699e-05,2]
[343970724,1733163031876,-1075.43,7.699e-05,2]
[343970725,1733163031926,-1368.10607744,7.699e-05,2]
[343970726,1733163031936,-1017.99371249,7.699e-05,2]
[343970727,1733163032099,-1254.21113338,7.699e-05,2]
[343970728,1733163032111,-356.99515413,7.699e-05,2]
[343970729,1733163032121,-150.0,7.699e-05,2]
[343970730,1733163032130,-1000.0,7.7e-05,2]
[343970731,1733163032140,-181.51012964,7.7e-05,2]
[343970732,1733163032150,-722.0,7.7e-05,2]
[343970733,1733163032160,-91.83471583,7.7e-05,2]
[343970734,1733163034003,-430998.90847003,7.7e-05,2]
[343970735,1733163034074,-28197.4505893,7.7e-05,2]
[343970736,1733163034086,-947.0,7.7e-05,2]
[343970781,1733163037905,-13304.348529,7.7e-05,2]
[343970782,1733163037917,-1155.3792788,7.7e-05,2]
[343970783,1733163038016,-17176.08217172,7.7e-05,2]
[343970784,1733163038028,-1306.14943969,7.7e-05,2]
[343970785,1733163038039,-9521460.67120068,7.7e-05,2]
[343970786,1733163038051,-2378.87675264,7.7e-05,2]
[343970787,1733163038063,-7950.00000048,7.7e-05,2]
[343970788,1733163038075,-1772.27003394,7.7e-05,2]
[343970789,1733163038098,-7819.92625854,7.7e-05,2]
[343970790,1733163038109,-970.66528482,7.7e-05,2]
[343970791,1733163038121,-447.57972712,7.7e-05,2]
[343970792,1733163038133,-841.87812077,7.7e-05,2]
[343970795,1733163038160,-1258873.5744138,7.7e-05,2]
[343970798,1733163038171,-1215605.14994281,7.7e-05,2]
[343970936,1733163042308,-587.54776559,7.7e-05,2]
[343970937,1733163042320,-3301.8,7.7e-05,2]
[343970938,1733163042345,-1961.47623923,7.7e-05,2]
[343970939,1733163042356,-14154.51428814,7.7e-05,2]
[343970943,1733163042544,-1182.88846,7.7e-05,2]
[343970945,1733163042557,-12259.02567645,7.7e-05,2]
[343970951,1733163042663,-762.67250016,7.7e-05,2]
[343970953,1733163042676,-3796.2746587,7.7e-05,2]
[343970955,1733163042690,-906.8202158,7.7e-05,2]
[343970961,1733163042754,-267175.23713612,7.7e-05,2]
[343970962,1733163042766,-598.68442652,7.7e-05,2]
[343970963,1733163042778,-2193.21,7.7e-05,2]
[343970966,1733163043374,-2549.27301819,7.7e-05,2]
[343970967,1733163043390,-10515.34110012,7.7e-05,2]
[343970968,1733163043402,-29062.63114176,7.7e-05,2]
[343970969,1733163043423,-6332.2849218,7.7e-05,2]
[343970970,1733163043438,-3605.96719144,7.7e-05,2]
[343970971,1733163043450,-11077.26854077,7.7e-05,2]
[343970972,1733163043461,-10880.91213407,7.7e-05,2]
[343970973,1733163043473,-5667.13333925,7.7e-05,2]
[343970974,1733163043487,-948.27733,7.7e-05,2]
[343970975,1733163043510,-286.2903834,7.7e-05,2]
[343970976,1733163043523,-29644.76067808,7.7e-05,2]
[343970977,1733163043534,-9503.0,7.7e-05,2]
[343970978,1733163043545,-84071.30109455,7.7e-05,2]
[343970979,1733163043559,-42254.1105238,7.7e-05,2]
[343970980,1733163043572,-2528.92880554,7.7e-05,2]
[343970981,1733163043584,-9417.30000002,7.7e-05,2]
[343970982,1733163043699,-30810.42719147,7.7e-05,2]
[343971006,1733163046003,-42794.57776706,7.7e-05,2]
[343971007,1733163046015,-262.92,7.7e-05,2]
[343971008,1733163046027,-3999.42611812,7.7e-05,2]
[343971009,1733163046039,-475.93,7.7e-05,2]
[343971010,1733163046051,-315.183,7.7e-05,2]
[343971012,1733163046062,-66085.03403348,7.7e-05,2]
[343971015,1733163046124,-11716.04741828,7.7e-05,2]
[343971016,1733163046136,-1518.00000003,7.7e-05,2]
[343971017,1733163046153,-4835.86875109,7.7e-05,2]
[343971018,1733163046164,-2271.04354938,7.7e-05,2]
[343971019,1733163046175,-358.29,7.7e-05,2]
[343971020,1733163046189,-1109.45,7.7e-05,2]
[343971021,1733163046214,-6907.94438265,7.7e-05,2]
[343971022,1733163046225,-6256.79715,7.7e-05,2]
[343971023,1733163046237,-11129.00034,7.7e-05,2]
[343971024,1733163046249,-4037.43792,7.7e-05,2]
[343971025,1733163046261,-9534.6312,7.7e-05,2]
[343971026,1733163046273,-915.28506787,7.7e-05,2]
[343971028,1733163046284,-251.64500025,7.7e-05,2]
[343971033,1733163046700,-179050.0000005,7.7e-05,2]
[343971034,1733163046711,-2199.12092326,7.7e-05,2]
[343971035,1733163046722,-2578.72496527,7.7e-05,2]
[343971036,1733163046734,-399571.21126074,7.7e-05,2]
[343971037,1733163046758,-475000.00000025,7.7e-05,2]
[343971038,1733163046769,-95301.98197,7.7e-05,2]
[343971039,1733163063617,300.0,7e-05,2]
[343971040,1733163065722,600.0,7.1e-05,2]
[343971041,1733163118056,158.12,6.868e-05,2]
[343971043,1733163197505,-1740.85,0.00025,120]
[343971044,1733163197560,-500.0,0.00025,120]
[343971045,1733163197615,-879.11,0.00025,120]
[343971046,1733163197671,-500.0,0.00025,120]
[343971047,1733163197727,-500.0,0.00025,120]
[343971048,1733163197782,-500.0,0.00025,120]
[343971049,1733163199632,-500.0,0.00025,120]
[343971050,1733163199785,-500.0,0.00025,120]
[343971051,1733163199851,-500.0,0.00025,120]
[343971052,1733163199902,-1861.13,0.00025,120]
[343971053,1733163199952,-500.0,0.00025,120]
[343971054,1733163200001,-500.0,0.00025,120]
[343971055,1733163200052,-1635.72,0.00025,120]
[343971056,1733163200100,-562.54,0.00025,120]
[343971057,1733163200148,-500.0,0.00025,120]
[343971058,1733163200195,-778.08,0.00025,120]
[343971059,1733163200241,-500.0,0.00025,120]
[343971060,1733163200289,-500.0,0.00025,120]
[343971061,1733163200337,-500.0,0.00025,120]
[343971062,1733163200384,-500.0,0.00025,120]
[343971063,1733163200429,-583.36,0.00025,120]
[343971064,1733163200479,-500.0,0.00025,120]
[343971065,1733163200526,-500.0,0.00025,120]
[343971066,1733163200578,-500.0,0.00025,120]
[343971067,1733163200627,-500.0,0.00025,120]
[343971068,1733163200677,-3091.9,0.00025,120]
[343971069,1733163200724,-954.65,0.00025,120]
[343971070,1733163200772,-5576.0,0.00025,120]
[343971071,1733163200821,-500.0,0.00025,120]
[343971072,1733163200872,-502.82,0.00025,120]
[343971073,1733163200919,-500.0,0.00025,120]
[343971074,1733163200965,-3868.52,0.00025,120]
[343971075,1733163201011,-7406.39,0.00025,120]
[343971076,1733163201062,-9982.1,0.00025,120]
[343971077,1733163201109,-785.99,0.00025,120]
[343971078,1733163201153,-500.0,0.00025,120]
[343971079,1733163201198,-761.06,0.00025,120]
[343971080,1733163201240,-2673.06,0.00025,120]
[343971081,1733163201284,-649.09,0.00025,120]
[343971082,1733163201326,-500.0,0.00025,120]
[343971083,1733163201368,-500.0,0.00025,120]
[343971084,1733163201410,-3989.44,0.00025,120]
[343971085,1733163201454,-23996.21,0.00025,120]
[343971086,1733163201499,-500.10260938,0.00025,120]
[343971087,1733163201548,-7255.67,0.00025,120]
[343971088,1733163201598,-2162.21,0.00025,120]
[343971089,1733163201644,-1197.48,0.00025,120]
[343971090,1733163201689,-500.0,0.00025,120]
[343971091,1733163201732,-500.0,0.00025,120]
[343971092,1733163201777,-500.0,0.00025,120]
[343971093,1733163201822,-500.0,0.00025,120]
[343971094,1733163201866,-500.0,0.00025,120]
[343971095,1733163201913,-500.0,0.00025,120]
[343971096,1733163201959,-12492.74,0.00025,120]
[343971097,1733163202005,-686.75,0.00025,120]
[343971098,1733163202050,-5577.22,0.00025,120]
[343971099,1733163202097,-500.0,0.00025,120]
[343971100,1733163202142,-6699.36,0.00025,120]
[343971101,1733163202188,-7108.11,0.00025,120]
[343971102,1733163202233,-500.0,0.00025,120]
[343971103,1733163202274,-1042.67,0.00025,120]
[343971104,1733163202316,-500.0,0.00025,120]
[343971105,1733163202359,-500.0,0.00025,120]
[343971106,1733163202403,-500.0,0.00025,120]
[343971107,1733163202449,-500.0,0.00025,120]
[343971108,1733163202496,-500.0,0.00025,120]
[343971109,1733163202546,-3625.8,0.00025,120]
[343971110,1733163202595,-500.0,0.00025,120]
[343971111,1733163202640,-500.0,0.00025,120]
[343971112,1733163202686,-7271.26,0.00025,120]
[343971113,1733163202732,-500.0,0.00025,120]
[343971114,1733163202909,-500.0,0.00025,120]
[343971115,1733163202955,-500.0,0.00025,120]
[343971116,1733163203001,-19249.84,0.00025,120]
[343971117,1733163203047,-3927.22,0.00025,120]
[343971118,1733163203095,-500.0,0.00025,120]
[343971119,1733163203142,-500.0,0.00025,120]
[343971120,1733163203187,-500.0,0.00025,120]
[343971121,1733163203234,-2260.44,0.00025,120]
[343971122,1733163203279,-500.0,0.00025,120]
[343971123,1733163203325,-2250.54,0.00025,120]
[343971124,1733163203371,-517.67513238,0.00025,120]
[343971125,1733163203418,-500.0,0.00025,120]
[343971126,1733163203465,-9394.48,0.00025,120]
[343971127,1733163203513,-500.0,0.00025,120]
[343971128,1733163203564,-2574.37,0.00025,120]
[343971129,1733163203616,-500.0,0.00025,120]
[343971130,1733163203670,-500.0,0.00025,120]
[343971131,1733163203728,-716.35,0.00025,120]
[343971132,1733163203774,-2709.97,0.00025,120]
[343971133,1733163203821,-500.0,0.00025,120]
[343971134,1733163203869,-2245.35,0.00025,120]
[343971135,1733163203919,-1683.18,0.00025,120]
[343971136,1733163203967,-500.0,0.00025,120]
[343971137,1733163204019,-3024.46,0.00025,120]
[343971138,1733163204069,-500.0,0.00025,120]
[343971139,1733163204117,-4349.77,0.00025,120]
[343971140,1733163204165,-4684.92,0.00025,120]
[343971141,1733163204213,-500.0,0.00025,120]
[343971142,1733163204261,-883.22,0.00025,120]
[343971143,1733163204318,-500.0,0.00025,120]
[343971144,1733163204370,-500.0,0.00025,120]
[343971145,1733163204420,-500.0,0.00025,120]
[343971146,1733163204470,-377.78983343,0.00025,120]
[343971147,1733163204519,-3302.22,0.00025,120]
[343971148,1733163204577,-1760.06,0.00025,120]
[343971149,1733163204628,-500.0,0.00025,120]
[343971150,1733163204677,-6423.42,0.00025,120]
[343971151,1733163204727,-3049.12,0.00025,120]
[343971152,1733163204777,-500.0,0.00025,120]
[343971153,1733163204825,-9184.32,0.00025,120]
[343971154,1733163204873,-1066.04,0.00025,120]
[343971155,1733163204923,-7246.59,0.00025,120]
[343971156,1733163204974,-500.0,0.00025,120]
[343971157,1733163205025,-500.0,0.00025,120]
[343971158,1733163205080,-786.34,0.00025,120]
[343971159,1733163205130,-606.4,0.00025,120]
[343971160,1733163205177,-9627.66,0.00025,120]
[343971161,1733163205226,-2284.88,0.00025,120]
[343971162,1733163205276,-500.0,0.00025,120]